[Event "Live Chess"]
[Site "Chess.com"]
[Date "2023.05.21"]
[Round "-"]
[White "Shepherds_Pie"]
[Black "LiamClery2020"]
[Result "1-0"]
[WhiteElo "1947"]
[BlackElo "2002"]
[TimeControl "300"]
[EndTime "3:57:18 PDT"]
[Termination "Shepherds_Pie won by resignation"]

1. c4 {[%clk 0:04:57]} 1... Nf6 {[%clk 0:04:58.6]} 2. Nc3 {[%clk 0:04:56]} 2...
e5 {[%clk 0:04:57.3]} 3. Nf3 {[%clk 0:04:53.8]} 3... Nc6 {[%clk 0:04:56]} 4. e3
{[%clk 0:04:51.9]} 4... d5 {[%clk 0:04:53.8]} 5. cxd5 {[%clk 0:04:49.9]} 5...
Nxd5 {[%clk 0:04:53.7]} 6. Bb5 {[%clk 0:04:47.7]} 6... Nxc3 {[%clk 0:04:48.6]}
7. bxc3 {[%clk 0:04:46.6]} 7... Bd6 {[%clk 0:04:47.5]} 8. d4 {[%clk 0:04:44.7]}
8... exd4 {[%clk 0:04:46.6]} 9. cxd4 {[%clk 0:04:42.8]} 9... Bd7 {[%clk
0:04:45]} 10. O-O {[%clk 0:04:38.8]} 10... O-O {[%clk 0:04:44.3]} 11. Bd2 {[%clk
0:04:33.7]} 11... a6 {[%clk 0:04:42.4]} 12. Bd3 {[%clk 0:04:31.1]} 12... Qf6
{[%clk 0:04:36.6]} 13. Rb1 {[%clk 0:04:26.6]} 13... b5 {[%clk 0:04:33.3]} 14.
Qc2 {[%clk 0:04:24.2]} 14... g6 {[%clk 0:04:24.4]} 15. Bc3 {[%clk 0:04:18.7]}
15... b4 {[%clk 0:04:20.8]} 16. Ba1 {[%clk 0:04:15.9]} 16... Qe7 {[%clk
0:04:14.2]} 17. e4 {[%clk 0:04:11.3]} 17... Bg4 {[%clk 0:04:11.2]} 18. Nd2
{[%clk 0:04:06.4]} 18... f6 {[%clk 0:03:49.6]} 19. Qxc6 {[%clk 0:04:01.6]} 19...
Qe6 {[%clk 0:03:44.6]} 20. Bc4 {[%clk 0:03:58.2]} 1-0

[Event "Live Chess"]
[Site "Chess.com"]
[Date "2023.05.21"]
[Round "-"]
[White "Abde2012"]
[Black "Singapourfeuj"]
[Result "0-1"]
[WhiteElo "751"]
[BlackElo "2198"]
[TimeControl "300"]
[EndTime "3:57:34 PDT"]
[Termination "Singapourfeuj won by checkmate"]

1. d4 {[%clk 0:04:55.3]} 1... Nf6 {[%clk 0:04:58.5]} 2. c4 {[%clk 0:04:54.3]}
2... g6 {[%clk 0:04:57.5]} 3. Nc3 {[%clk 0:04:48.6]} 3... Bg7 {[%clk 0:04:56.5]}
4. Bf4 {[%clk 0:04:45.8]} 4... d6 {[%clk 0:04:55.5]} 5. e3 {[%clk 0:04:41.2]}
5... O-O {[%clk 0:04:53.9]} 6. Nf3 {[%clk 0:04:39]} 6... Nbd7 {[%clk 0:04:50.9]}
7. g3 {[%clk 0:04:37.9]} 7... h6 {[%clk 0:04:47.3]} 8. Bg2 {[%clk 0:04:36.3]}
8... g5 {[%clk 0:04:38.9]} 9. e4 {[%clk 0:04:28.2]} 9... gxf4 {[%clk 0:04:37.7]}
10. gxf4 {[%clk 0:04:26.4]} 10... e5 {[%clk 0:04:36.5]} 11. fxe5 {[%clk
0:04:25]} 11... dxe5 {[%clk 0:04:35.5]} 12. dxe5 {[%clk 0:04:23.9]} 12... Nh5
{[%clk 0:04:32.4]} 13. O-O {[%clk 0:04:20.8]} 13... Nxe5 {[%clk 0:04:28.3]} 14.
Nxe5 {[%clk 0:04:19.3]} 14... Qxd1 {[%clk 0:04:26.6]} 15. Rfxd1 {[%clk
0:04:16.5]} 15... Bxe5 {[%clk 0:04:24.6]} 16. Rd5 {[%clk 0:04:13.3]} 16... Bxc3
{[%clk 0:04:22.6]} 17. bxc3 {[%clk 0:04:10.9]} 17... Ng7 {[%clk 0:04:21.4]} 18.
Rad1 {[%clk 0:04:03.4]} 18... Be6 {[%clk 0:04:20.1]} 19. Re5 {[%clk 0:03:59.2]}
19... Rfd8 {[%clk 0:04:16.1]} 20. Rxd8+ {[%clk 0:03:56.6]} 20... Rxd8 {[%clk
0:04:14.8]} 21. c5 {[%clk 0:03:51.5]} 21... f6 {[%clk 0:04:13]} 22. Rd5 {[%clk
0:03:43.5]} 22... Bxd5 {[%clk 0:04:10.5]} 23. exd5 {[%clk 0:03:43.1]} 23... b6
{[%clk 0:04:09]} 24. cxb6 {[%clk 0:03:41.6]} 24... axb6 {[%clk 0:04:07.3]} 25.
a4 {[%clk 0:03:37.5]} 25... Nf5 {[%clk 0:04:06]} 26. Be4 {[%clk 0:03:34.1]}
26... Nd6 {[%clk 0:04:04.4]} 27. Bf3 {[%clk 0:03:31.6]} 27... f5 {[%clk
0:04:02.4]} 28. Kg2 {[%clk 0:03:25.1]} 28... Kg7 {[%clk 0:04:01.4]} 29. Kg3
{[%clk 0:03:24.2]} 29... Kf6 {[%clk 0:04:00.6]} 30. Kh4 {[%clk 0:03:23.2]} 30...
Ke5 {[%clk 0:03:58.8]} 31. Kh5 {[%clk 0:03:20.6]} 31... Kf6 {[%clk 0:03:57.5]}
32. Kxh6 {[%clk 0:03:19.8]} 32... Rh8# {[%clk 0:03:56]} 0-1

[Event "Live Chess"]
[Site "Chess.com"]
[Date "2023.05.21"]
[Round "-"]
[White "matt1979"]
[Black "Ferrarifan27"]
[Result "0-1"]
[WhiteElo "1549"]
[BlackElo "2073"]
[TimeControl "300"]
[EndTime "3:57:39 PDT"]
[Termination "Ferrarifan27 won by resignation"]

1. f4 {[%clk 0:04:58.2]} 1... Nf6 {[%clk 0:04:57.6]} 2. Nf3 {[%clk 0:04:56.4]}
2... d6 {[%clk 0:04:54.8]} 3. e3 {[%clk 0:04:54.7]} 3... Nc6 {[%clk 0:04:53.8]}
4. Bb5 {[%clk 0:04:53]} 4... Bd7 {[%clk 0:04:52.2]} 5. O-O {[%clk 0:04:51.2]}
5... a6 {[%clk 0:04:50.2]} 6. Bxc6 {[%clk 0:04:49.7]} 6... Bxc6 {[%clk
0:04:48.4]} 7. d3 {[%clk 0:04:48.4]} 7... e6 {[%clk 0:04:46.5]} 8. e4 {[%clk
0:04:46.9]} 8... Be7 {[%clk 0:04:44.3]} 9. Nc3 {[%clk 0:04:45.3]} 9... O-O
{[%clk 0:04:36.7]} 10. Qe1 {[%clk 0:04:43.9]} 10... d5 {[%clk 0:04:33.8]} 11. h3
{[%clk 0:04:37.6]} 11... dxe4 {[%clk 0:04:32.3]} 12. dxe4 {[%clk 0:04:31.8]}
12... Bc5+ {[%clk 0:04:31.1]} 13. Kh1 {[%clk 0:04:24.4]} 13... Qe7 {[%clk
0:04:22.5]} 14. Ne5 {[%clk 0:04:21.9]} 14... Bd7 {[%clk 0:04:00.7]} 15. Bd2
{[%clk 0:04:13.3]} 15... Rad8 {[%clk 0:03:56.3]} 16. Rd1 {[%clk 0:04:09.5]}
16... Bc8 {[%clk 0:03:48]} 17. Qh4 {[%clk 0:04:00.7]} 17... Nxe4 {[%clk
0:03:35.3]} 18. Nxe4 {[%clk 0:03:56]} 18... Qxh4 {[%clk 0:03:33.3]} 0-1

[Event "Live Chess"]
[Site "Chess.com"]
[Date "2023.05.21"]
[Round "-"]
[White "diana21strabt"]
[Black "Twickenham2014"]
[Result "0-1"]
[WhiteElo "1746"]
[BlackElo "2304"]
[TimeControl "300"]
[EndTime "3:57:49 PDT"]
[Termination "Twickenham2014 won by resignation"]

1. e4 {[%clk 0:04:58.9]} 1... c5 {[%clk 0:04:59.1]} 2. Nf3 {[%clk 0:04:57.5]}
2... d6 {[%clk 0:04:58.7]} 3. d4 {[%clk 0:04:56.4]} 3... cxd4 {[%clk 0:04:58.6]}
4. Nxd4 {[%clk 0:04:55.5]} 4... Nf6 {[%clk 0:04:57.8]} 5. Nc3 {[%clk 0:04:54.9]}
5... g6 {[%clk 0:04:55]} 6. Be3 {[%clk 0:04:53.5]} 6... Bg7 {[%clk 0:04:49.3]}
7. f3 {[%clk 0:04:52.3]} 7... Nc6 {[%clk 0:04:47.9]} 8. Qd2 {[%clk 0:04:51.3]}
8... O-O {[%clk 0:04:47]} 9. O-O-O {[%clk 0:04:50.6]} 9... d5 {[%clk 0:04:45.7]}
10. exd5 {[%clk 0:04:49.1]} 10... Nxd5 {[%clk 0:04:41.6]} 11. Nxc6 {[%clk
0:04:47.1]} 11... bxc6 {[%clk 0:04:41.5]} 12. Nxd5 {[%clk 0:04:45.4]} 12... cxd5
{[%clk 0:04:39.7]} 13. Qxd5 {[%clk 0:04:42.5]} 13... Qc7 {[%clk 0:04:38.1]} 14.
Qxa8 {[%clk 0:04:29.3]} 14... Bf5 {[%clk 0:04:36.3]} 15. Qxf8+ {[%clk
0:04:28.2]} 15... Bxf8 {[%clk 0:04:30]} 16. Bd3 {[%clk 0:04:24.2]} 16... Be6
{[%clk 0:04:20.7]} 17. a3 {[%clk 0:04:15]} 17... h5 {[%clk 0:04:08]} 18. h3
{[%clk 0:04:10.4]} 18... Bg7 {[%clk 0:04:06.3]} 19. Kb1 {[%clk 0:03:55.2]} 19...
Qb7 {[%clk 0:03:51.8]} 20. Bc1 {[%clk 0:03:50.8]} 20... Qd5 {[%clk 0:03:29.7]}
21. c4 {[%clk 0:03:23.2]} 21... Qc5 {[%clk 0:03:16.4]} 22. Rhe1 {[%clk
0:03:09.8]} 22... Bf6 {[%clk 0:03:05.1]} 23. Be3 {[%clk 0:02:59.2]} 23... Qc7
{[%clk 0:02:56.9]} 24. Rc1 {[%clk 0:02:43.4]} 24... Qe5 {[%clk 0:02:34.6]} 25.
Rc2 {[%clk 0:02:33.3]} 25... a5 {[%clk 0:02:25.8]} 26. Bd2 {[%clk 0:02:25.2]}
26... Qc5 {[%clk 0:02:17.5]} 27. Be3 {[%clk 0:02:20]} 27... Qd6 {[%clk
0:02:08.3]} 28. c5 {[%clk 0:02:10.4]} 28... Qxd3 {[%clk 0:02:05.9]} 29. c6
{[%clk 0:02:00.3]} 29... Bb3 {[%clk 0:02:02.2]} 30. Rc1 {[%clk 0:01:48.3]} 30...
Qxe3 {[%clk 0:01:50.7]} 31. c7 {[%clk 0:01:40.2]} 31... Be6 {[%clk 0:01:44.9]}
32. c8=Q+ {[%clk 0:01:36.1]} 32... Bxc8 {[%clk 0:01:43.4]} 33. Rxc8+ {[%clk
0:01:35]} 33... Kg7 {[%clk 0:01:42.7]} 34. R8c5 {[%clk 0:01:26.2]} 34... Qd2
{[%clk 0:01:36.3]} 35. R1c2 {[%clk 0:01:24.5]} 35... Qd1+ {[%clk 0:01:31.9]} 36.
Ka2 {[%clk 0:01:23.5]} 36... a4 {[%clk 0:01:30.8]} 37. R5c4 {[%clk 0:01:20.9]}
37... Qd5 {[%clk 0:01:28.1]} 38. Kb1 {[%clk 0:01:17]} 38... Qb5 {[%clk
0:01:23.9]} 39. Rb4 {[%clk 0:01:12.1]} 39... Qf1+ {[%clk 0:01:21.6]} 40. Ka2
{[%clk 0:01:11.1]} 40... Qd1 {[%clk 0:01:20]} 41. Rbc4 {[%clk 0:01:07.3]} 41...
e5 {[%clk 0:01:14.9]} 42. Rc6 {[%clk 0:01:00]} 42... Bg5 {[%clk 0:01:09.7]} 43.
R2c3 {[%clk 0:00:58]} 43... Bd2 {[%clk 0:01:04.5]} 44. Rd3 {[%clk 0:00:53]}
44... Qe2 {[%clk 0:01:03.7]} 45. Rcd6 {[%clk 0:00:51]} 45... Bf4 {[%clk
0:01:02.8]} 46. R6d5 {[%clk 0:00:47.4]} 46... Qxg2 {[%clk 0:01:01.6]} 47. h4
{[%clk 0:00:43.2]} 47... Qh3 {[%clk 0:00:59.4]} 48. Rc3 {[%clk 0:00:40.2]} 48...
Qxh4 {[%clk 0:00:58.1]} 49. Rc4 {[%clk 0:00:39.5]} 49... Qe7 {[%clk 0:00:56.2]}
50. Rxa4 {[%clk 0:00:35.8]} 50... Qe6 {[%clk 0:00:55]} 51. Ra5 {[%clk 0:00:35]}
51... h4 {[%clk 0:00:54.1]} 52. Kb1 {[%clk 0:00:32.6]} 52... h3 {[%clk
0:00:53.5]} 53. Rd1 {[%clk 0:00:30.1]} 53... h2 {[%clk 0:00:52.8]} 54. Rh1
{[%clk 0:00:28.1]} 54... Qc6 {[%clk 0:00:50.2]} 55. Ra8 {[%clk 0:00:19]} 55...
Qxa8 {[%clk 0:00:48.7]} 56. b4 {[%clk 0:00:17.9]} 56... Qxf3 {[%clk 0:00:48.2]}
57. Rd1 {[%clk 0:00:16.6]} 57... Qxd1+ {[%clk 0:00:46.9]} 58. Kb2 {[%clk
0:00:15.7]} 58... Qd3 {[%clk 0:00:43.3]} 0-1

[Event "Live Chess"]
[Site "Chess.com"]
[Date "2023.05.21"]
[Round "-"]
[White "HoarseyHorsey"]
[Black "domrobson"]
[Result "0-1"]
[WhiteElo "1459"]
[BlackElo "1696"]
[TimeControl "300"]
[EndTime "3:57:49 PDT"]
[Termination "domrobson won by resignation"]

1. d4 {[%clk 0:04:59.1]} 1... Nf6 {[%clk 0:04:58.7]} 2. c4 {[%clk 0:04:58.3]}
2... e6 {[%clk 0:04:58.2]} 3. Nc3 {[%clk 0:04:57.5]} 3... d5 {[%clk 0:04:57.3]}
4. cxd5 {[%clk 0:04:56.5]} 4... exd5 {[%clk 0:04:54.8]} 5. Bg5 {[%clk
0:04:55.4]} 5... Be7 {[%clk 0:04:50.5]} 6. e3 {[%clk 0:04:54.8]} 6... Be6 {[%clk
0:04:49.3]} 7. Nf3 {[%clk 0:04:54]} 7... Nbd7 {[%clk 0:04:48.4]} 8. Bd3 {[%clk
0:04:52.7]} 8... c6 {[%clk 0:04:47.7]} 9. O-O {[%clk 0:04:51.1]} 9... O-O {[%clk
0:04:46.5]} 10. Qc2 {[%clk 0:04:49.6]} 10... h6 {[%clk 0:04:44.1]} 11. Bh4
{[%clk 0:04:48.6]} 11... c5 {[%clk 0:04:43.4]} 12. Bf5 {[%clk 0:04:40.9]} 12...
cxd4 {[%clk 0:04:39.8]} 13. Nxd4 {[%clk 0:04:37.6]} 13... Bxf5 {[%clk
0:04:36.5]} 14. Nxf5 {[%clk 0:04:35.3]} 14... Rc8 {[%clk 0:04:29.8]} 15. Nxe7+
{[%clk 0:04:32.8]} 15... Qxe7 {[%clk 0:04:28.5]} 16. Qd3 {[%clk 0:04:24.7]}
16... Qe6 {[%clk 0:04:22.5]} 17. Rfd1 {[%clk 0:04:15.5]} 17... Ne5 {[%clk
0:04:18]} 18. Qd4 {[%clk 0:04:06.5]} 18... Rc4 {[%clk 0:04:14.3]} 19. Qd2 {[%clk
0:03:58.1]} 19... Rxh4 {[%clk 0:04:12.6]} 20. Nxd5 {[%clk 0:03:55.1]} 20... Qxd5
{[%clk 0:04:05.8]} 21. Qxd5 {[%clk 0:03:55]} 21... Nxd5 {[%clk 0:04:03.8]} 22.
Rxd5 {[%clk 0:03:54.9]} 22... Nc6 {[%clk 0:04:01.9]} 23. Rad1 {[%clk 0:03:53.3]}
23... Rb4 {[%clk 0:04:00]} 24. b3 {[%clk 0:03:50.4]} 24... Re4 {[%clk
0:03:57.4]} 25. Rd7 {[%clk 0:03:49.2]} 25... Re7 {[%clk 0:03:55.5]} 26. f3
{[%clk 0:03:46.6]} 26... Rxd7 {[%clk 0:03:48.9]} 27. Rxd7 {[%clk 0:03:45]} 27...
Rb8 {[%clk 0:03:46.6]} 28. Kf2 {[%clk 0:03:43.2]} 28... a5 {[%clk 0:03:43.2]}
29. g4 {[%clk 0:03:37.7]} 29... b5 {[%clk 0:03:41.9]} 30. f4 {[%clk 0:03:33.5]}
30... a4 {[%clk 0:03:38.9]} 31. bxa4 {[%clk 0:03:29.6]} 31... bxa4 {[%clk
0:03:38.3]} 32. Rd6 {[%clk 0:03:28.3]} 32... Ne7 {[%clk 0:03:34.1]} 33. Kf3
{[%clk 0:03:23]} 33... Kf8 {[%clk 0:03:28.7]} 34. Ra6 {[%clk 0:03:18.5]} 34...
Rb4 {[%clk 0:03:26.3]} 35. h4 {[%clk 0:03:14.9]} 35... Ke8 {[%clk 0:03:23.3]}
36. f5 {[%clk 0:03:04.2]} 36... f6 {[%clk 0:03:21.6]} 37. h5 {[%clk 0:02:55.3]}
37... Nd5 {[%clk 0:03:08.6]} 38. Re6+ {[%clk 0:02:46.7]} 38... Kf7 {[%clk
0:03:05.8]} 39. e4 {[%clk 0:02:45.7]} 39... Nc3 {[%clk 0:03:03.6]} 40. e5 {[%clk
0:02:39]} 40... fxe5 {[%clk 0:02:55.4]} 41. Rxe5 {[%clk 0:02:37]} 41... Nxa2
{[%clk 0:02:53.8]} 0-1

[Event "Live Chess"]
[Site "Chess.com"]
[Date "2023.05.21"]
[Round "-"]
[White "Dhaydon19"]
[Black "raminguy"]
[Result "1-0"]
[WhiteElo "2697"]
[BlackElo "1977"]
[TimeControl "300"]
[EndTime "3:57:56 PDT"]
[Termination "Dhaydon19 won by resignation"]

1. d4 {[%clk 0:04:57.4]} 1... d5 {[%clk 0:04:59]} 2. Nf3 {[%clk 0:04:56.5]} 2...
Nf6 {[%clk 0:04:58.7]} 3. c3 {[%clk 0:04:55.5]} 3... e6 {[%clk 0:04:58.4]} 4. g3
{[%clk 0:04:54.7]} 4... Be7 {[%clk 0:04:58.2]} 5. Bg2 {[%clk 0:04:54.2]} 5...
O-O {[%clk 0:04:57.9]} 6. O-O {[%clk 0:04:53.7]} 6... c5 {[%clk 0:04:57.6]} 7.
Nbd2 {[%clk 0:04:53]} 7... cxd4 {[%clk 0:04:57.2]} 8. Nxd4 {[%clk 0:04:52.3]}
8... Nc6 {[%clk 0:04:57]} 9. Nxc6 {[%clk 0:04:51.6]} 9... bxc6 {[%clk
0:04:56.7]} 10. e4 {[%clk 0:04:50.9]} 10... e5 {[%clk 0:04:53]} 11. exd5 {[%clk
0:04:49.3]} 11... cxd5 {[%clk 0:04:52.9]} 12. Nf3 {[%clk 0:04:48.2]} 12... Bd6
{[%clk 0:04:48.7]} 13. Re1 {[%clk 0:04:47.3]} 13... Re8 {[%clk 0:04:45.4]} 14.
Bg5 {[%clk 0:04:45.6]} 14... Bb7 {[%clk 0:04:43.1]} 15. Nh4 {[%clk 0:04:42.6]}
15... h6 {[%clk 0:04:41.7]} 16. Bxf6 {[%clk 0:04:40.8]} 16... Qxf6 {[%clk
0:04:37.9]} 17. Bxd5 {[%clk 0:04:39.9]} 17... Bxd5 {[%clk 0:04:35.9]} 18. Qxd5
{[%clk 0:04:38.2]} 18... Rad8 {[%clk 0:04:35.7]} 19. Qe4 {[%clk 0:04:35.4]}
19... Bc5 {[%clk 0:04:30]} 20. Re2 {[%clk 0:04:34.3]} 20... Qg5 {[%clk
0:04:23.5]} 21. Kg2 {[%clk 0:04:30.7]} 21... f5 {[%clk 0:04:22]} 22. Qxf5 {[%clk
0:04:27.9]} 1-0

[Event "Live Chess"]
[Site "Chess.com"]
[Date "2023.05.21"]
[Round "-"]
[White "Driftboard"]
[Black "Tiltador"]
[Result "1-0"]
[WhiteElo "882"]
[BlackElo "880"]
[TimeControl "300"]
[EndTime "3:58:01 PDT"]
[Termination "Driftboard won by resignation"]

1. e4 {[%clk 0:04:59.3]} 1... d5 {[%clk 0:04:57.1]} 2. exd5 {[%clk 0:04:57.9]}
2... Qxd5 {[%clk 0:04:55.9]} 3. Nc3 {[%clk 0:04:57.5]} 3... Qe6+ {[%clk
0:04:54.7]} 4. Qe2 {[%clk 0:04:55.5]} 4... Qxe2+ {[%clk 0:04:52]} 5. Bxe2 {[%clk
0:04:54.9]} 5... e6 {[%clk 0:04:49.6]} 6. d3 {[%clk 0:04:54.1]} 6... Bb4 {[%clk
0:04:48.5]} 7. Bd2 {[%clk 0:04:52.9]} 7... Nf6 {[%clk 0:04:43.6]} 8. a3 {[%clk
0:04:51.4]} 8... Bxc3 {[%clk 0:04:42.4]} 9. Bxc3 {[%clk 0:04:50.1]} 9... O-O
{[%clk 0:04:41.2]} 10. Bxf6 {[%clk 0:04:46.2]} 10... gxf6 {[%clk 0:04:38.2]} 11.
O-O-O {[%clk 0:04:43.8]} 11... Nc6 {[%clk 0:04:34.2]} 12. Nf3 {[%clk 0:04:40.2]}
12... b6 {[%clk 0:04:33.1]} 13. h3 {[%clk 0:04:25.5]} 13... Bb7 {[%clk
0:04:31.6]} 14. g4 {[%clk 0:04:15.2]} 14... Ne5 {[%clk 0:04:28]} 15. Nxe5 {[%clk
0:04:09.8]} 15... fxe5 {[%clk 0:04:26.2]} 16. Rhg1 {[%clk 0:04:05.2]} 16... Kh8
{[%clk 0:04:23.3]} 17. h4 {[%clk 0:04:01.5]} 17... f5 {[%clk 0:04:17.1]} 18. g5
{[%clk 0:03:59.4]} 18... f4 {[%clk 0:04:10.3]} 19. Bg4 {[%clk 0:03:52.2]} 19...
Rae8 {[%clk 0:04:00.8]} 20. Bh5 {[%clk 0:03:50.3]} 20... Re7 {[%clk 0:03:57.5]}
21. g6 {[%clk 0:03:49.2]} 21... hxg6 {[%clk 0:03:53.8]} 22. Rxg6 {[%clk
0:03:46.9]} 22... Rg7 {[%clk 0:03:47.7]} 23. Rxe6 {[%clk 0:03:40.9]} 23... f3
{[%clk 0:03:18]} 24. Rxe5 {[%clk 0:03:26.4]} 24... Rfg8 {[%clk 0:03:04.4]} 25.
Re6 {[%clk 0:03:12.7]} 25... Rg1 {[%clk 0:02:59.5]} 26. Rh6+ {[%clk 0:03:04]}
26... Kg7 {[%clk 0:02:48.3]} 27. Rxg1+ {[%clk 0:02:57.2]} 27... Kf8 {[%clk
0:02:47.2]} 28. Rf6+ {[%clk 0:02:48.7]} 28... Ke7 {[%clk 0:02:39.7]} 29. Rf7+
{[%clk 0:02:45.8]} 29... Kd6 {[%clk 0:02:33.2]} 30. Rxg8 {[%clk 0:02:43.2]}
30... Bd5 {[%clk 0:02:28.3]} 31. Rg6+ {[%clk 0:02:35.9]} 31... Kc5 {[%clk
0:02:22.7]} 32. Rf5 {[%clk 0:02:32.5]} 32... c6 {[%clk 0:02:19.7]} 33. Bxf3
{[%clk 0:02:29.7]} 33... Kb5 {[%clk 0:02:15.3]} 34. Bxd5 {[%clk 0:02:28.4]}
34... cxd5 {[%clk 0:02:13.1]} 35. Rxd5+ {[%clk 0:02:27.4]} 35... Ka6 {[%clk
0:02:12.2]} 36. h5 {[%clk 0:02:24]} 1-0

[Event "Live Chess"]
[Site "Chess.com"]
[Date "2023.05.21"]
[Round "-"]
[White "manthanit"]
[Black "NAZRIZ1977"]
[Result "0-1"]
[WhiteElo "1088"]
[BlackElo "1963"]
[TimeControl "300"]
[EndTime "3:58:01 PDT"]
[Termination "NAZRIZ1977 won by resignation"]

1. e4 {[%clk 0:04:51]} 1... c5 {[%clk 0:04:56.7]} 2. b3 {[%clk 0:04:48.2]} 2...
d5 {[%clk 0:04:54]} 3. exd5 {[%clk 0:04:46.1]} 3... Qxd5 {[%clk 0:04:53.9]} 4.
Bb2 {[%clk 0:04:45.3]} 4... Nf6 {[%clk 0:04:52.6]} 5. Nc3 {[%clk 0:04:40.8]}
5... Qd8 {[%clk 0:04:51.6]} 6. Nf3 {[%clk 0:04:39.6]} 6... Nc6 {[%clk
0:04:50.8]} 7. Bb5 {[%clk 0:04:37.5]} 7... Bd7 {[%clk 0:04:49.4]} 8. O-O {[%clk
0:04:22.5]} 8... g6 {[%clk 0:04:45.6]} 9. Re1 {[%clk 0:04:20.5]} 9... Bg7 {[%clk
0:04:44.2]} 10. Rb1 {[%clk 0:04:17.1]} 10... O-O {[%clk 0:04:42.6]} 11. d4
{[%clk 0:03:58.2]} 11... cxd4 {[%clk 0:04:38.7]} 12. Nxd4 {[%clk 0:03:57]} 12...
Nxd4 {[%clk 0:04:36.6]} 13. Qxd4 {[%clk 0:03:52.7]} 13... Bxb5 {[%clk
0:04:33.1]} 14. Qxd8 {[%clk 0:03:51]} 14... Rfxd8 {[%clk 0:04:28.9]} 15. Nxb5
{[%clk 0:03:50.1]} 15... a6 {[%clk 0:04:26.6]} 16. Nc3 {[%clk 0:03:36.9]} 16...
e6 {[%clk 0:04:24.9]} 17. h3 {[%clk 0:03:29.2]} 17... Rac8 {[%clk 0:04:22.8]}
18. Ne4 {[%clk 0:03:20.2]} 18... Nxe4 {[%clk 0:04:19]} 19. Bxg7 {[%clk 0:03:18]}
19... Kxg7 {[%clk 0:04:14.2]} 20. Rxe4 {[%clk 0:03:16.3]} 20... Rxc2 {[%clk
0:04:13.9]} 21. Ra1 {[%clk 0:03:08]} 21... Rdd2 {[%clk 0:04:12.2]} 22. Rf4
{[%clk 0:03:05.9]} 22... Rxa2 {[%clk 0:04:11.1]} 23. Rxa2 {[%clk 0:03:02.8]}
23... Rxa2 {[%clk 0:04:09.8]} 24. Rb4 {[%clk 0:03:01.4]} 24... b5 {[%clk
0:04:05.3]} 25. Rd4 {[%clk 0:02:52.8]} 25... Rb2 {[%clk 0:04:00.8]} 26. Rd3
{[%clk 0:02:48.5]} 26... Kf6 {[%clk 0:03:59.1]} 27. Kf1 {[%clk 0:02:47.9]} 27...
Ke5 {[%clk 0:03:58.2]} 28. Ke1 {[%clk 0:02:47.4]} 28... a5 {[%clk 0:03:57.2]}
29. Kd1 {[%clk 0:02:46.2]} 29... Rxf2 {[%clk 0:03:55.7]} 30. Rf3 {[%clk
0:02:38.2]} 30... Rxf3 {[%clk 0:03:54.1]} 31. gxf3 {[%clk 0:02:37.8]} 31... Kf4
{[%clk 0:03:54]} 0-1

[Event "Live Chess"]
[Site "Chess.com"]
[Date "2023.05.21"]
[Round "-"]
[White "JanMur7"]
[Black "garyjc"]
[Result "1-0"]
[WhiteElo "1978"]
[BlackElo "1045"]
[TimeControl "300"]
[EndTime "3:58:06 PDT"]
[Termination "JanMur7 won on time"]

1. e4 {[%clk 0:04:59.1]} 1... c5 {[%clk 0:04:56.6]} 2. Nf3 {[%clk 0:04:58.2]}
2... a6 {[%clk 0:04:54.1]} 3. a4 {[%clk 0:04:54.9]} 3... d6 {[%clk 0:04:28.7]}
4. c3 {[%clk 0:04:52.5]} 4... e6 {[%clk 0:04:15]} 5. d4 {[%clk 0:04:50.2]} 5...
b6 {[%clk 0:04:10.4]} 6. dxc5 {[%clk 0:04:48.4]} 6... bxc5 {[%clk 0:04:08.6]} 7.
Be3 {[%clk 0:04:47.2]} 7... Nf6 {[%clk 0:04:02]} 8. Nbd2 {[%clk 0:04:44.6]} 8...
Ng4 {[%clk 0:03:59.8]} 9. Bf4 {[%clk 0:04:39]} 9... Be7 {[%clk 0:03:46.5]} 10.
h3 {[%clk 0:04:36.3]} 10... Nf6 {[%clk 0:03:18.9]} 11. Bd3 {[%clk 0:04:32.3]}
11... O-O {[%clk 0:03:12.2]} 12. O-O {[%clk 0:04:29.7]} 12... Nc6 {[%clk
0:03:01.1]} 13. e5 {[%clk 0:04:23.3]} 13... dxe5 {[%clk 0:02:58.2]} 14. Bxe5
{[%clk 0:04:18.5]} 14... Qxd3 {[%clk 0:02:49.6]} 15. Bg3 {[%clk 0:04:14.4]}
15... Qd8 {[%clk 0:02:22.8]} 16. Qc2 {[%clk 0:04:11.1]} 16... Bd6 {[%clk
0:02:18.5]} 17. Bxd6 {[%clk 0:04:05.5]} 17... Qxd6 {[%clk 0:02:16.6]} 18. Rad1
{[%clk 0:04:05.4]} 18... Qe7 {[%clk 0:02:13.4]} 19. Rfe1 {[%clk 0:04:01.3]}
19... Bb7 {[%clk 0:02:06]} 20. Nc4 {[%clk 0:03:57.7]} 20... Na7 {[%clk
0:01:38.7]} 21. Nd6 {[%clk 0:03:51]} 21... Bxf3 {[%clk 0:01:31.4]} 22. gxf3
{[%clk 0:03:48.2]} 22... Nd5 {[%clk 0:01:21.5]} 23. Rxd5 {[%clk 0:03:44.6]}
23... Nc6 {[%clk 0:01:04.2]} 24. Rdd1 {[%clk 0:03:40]} 24... Qg5+ {[%clk
0:00:59.9]} 25. Kh1 {[%clk 0:03:37.4]} 25... Ne5 {[%clk 0:00:55.6]} 26. Qe4
{[%clk 0:03:34.2]} 26... f6 {[%clk 0:00:35.7]} 27. Rg1 {[%clk 0:03:29.3]} 27...
Qh6 {[%clk 0:00:09.5]} 28. Rg3 {[%clk 0:03:27.6]} 28... f5 {[%clk 0:00:04]} 29.
Qxe5 {[%clk 0:03:24.8]} 29... f4 {[%clk 0:00:00.2]} 30. Qxg7+ {[%clk 0:03:24.7]}
1-0

[Event "Live Chess"]
[Site "Chess.com"]
[Date "2023.05.21"]
[Round "-"]
[White "Chesscoach_Golichenko"]
[Black "bedsdrout"]
[Result "1-0"]
[WhiteElo "2618"]
[BlackElo "571"]
[TimeControl "300"]
[EndTime "3:58:22 PDT"]
[Termination "Chesscoach_Golichenko won by checkmate"]

1. d4 {[%clk 0:04:57.5]} 1... e5 {[%clk 0:04:46.4]} 2. dxe5 {[%clk 0:04:55.7]}
2... Nc6 {[%clk 0:04:19.9]} 3. f4 {[%clk 0:04:52.3]} 3... Qe7 {[%clk 0:04:03.8]}
4. Nf3 {[%clk 0:04:36.6]} 4... Qc5 {[%clk 0:03:59.4]} 5. Nc3 {[%clk 0:04:22.6]}
5... Qb6 {[%clk 0:03:56.2]} 6. e4 {[%clk 0:04:14.9]} 6... f6 {[%clk 0:03:35.5]}
7. Nd5 {[%clk 0:03:57.1]} 7... Qc5 {[%clk 0:03:19]} 8. Nxc7+ {[%clk 0:03:47]}
8... Kd8 {[%clk 0:03:07.1]} 9. Ne6+ {[%clk 0:03:43.3]} 9... Ke8 {[%clk
0:02:45.8]} 10. Nxc5 {[%clk 0:03:18.1]} 10... fxe5 {[%clk 0:02:24.1]} 11. Be3
{[%clk 0:03:06.8]} 11... exf4 {[%clk 0:01:48.6]} 12. Bf2 {[%clk 0:03:05.4]}
12... b6 {[%clk 0:01:19]} 13. Nd3 {[%clk 0:03:01]} 13... a6 {[%clk 0:00:57.1]}
14. Nxf4 {[%clk 0:02:54.7]} 14... Bd6 {[%clk 0:00:39]} 15. Qxd6 {[%clk
0:02:48.7]} 15... Nge7 {[%clk 0:00:28.3]} 16. Bc4 {[%clk 0:02:44.2]} 16... Ne5
{[%clk 0:00:20.7]} 17. Qxe5 {[%clk 0:02:42.2]} 17... d6 {[%clk 0:00:17.6]} 18.
Qxd6 {[%clk 0:02:40.5]} 18... Kf8 {[%clk 0:00:14.5]} 19. Bh4 {[%clk 0:02:37.6]}
19... Rb8 {[%clk 0:00:11.2]} 20. Qxe7# {[%clk 0:02:34.3]} 1-0